fUST/lending_fUST_20240110
["ID","MTS","AMOUNT","RATE_DAILY","PERIOD"]
[311083139,1704900571866,-500.0,0.00027397,2]
[311083140,1704900571886,-500.0,0.00027397,2]
[311083141,1704900571907,-500.0,0.00027397,2]
[311083142,1704900571929,-254.00672133,0.00027397,2]
[311083143,1704900571954,-1000.0,0.00027397,2]
[311083144,1704900571974,-500.0,0.00027397,2]
[311083145,1704900571995,-500.0,0.00027397,2]
[311083146,1704900572015,-500.0,0.00027397,2]
[311083147,1704900572036,-500.0,0.00027397,2]
[311083148,1704900572057,-564.33525738,0.00027397,2]
[311083149,1704900572078,-500.0,0.00027397,2]
[311083150,1704900572099,-500.0,0.00027397,2]
[311083151,1704900572119,-185.62363994,0.00027397,2]
[311083152,1704900572139,-500.0,0.00027397,2]
[311083153,1704900572160,-500.0,0.00027397,2]
[311083154,1704900572197,-500.0,0.00027397,2]
[311083155,1704900572219,-500.0,0.00027397,2]
[311083156,1704900572241,-532.49,0.00027397,2]
[311083157,1704900572264,-500.0,0.00027397,2]
[311083158,1704900572285,-500.0,0.00027397,2]
[311083159,1704900572306,-448.30218637,0.00027397,2]
[311083160,1704900572327,-287.98515762,0.00027397,2]
[311083161,1704900572348,-500.0,0.00027397,2]
[311083162,1704900572374,-500.0,0.00027397,2]
[311083163,1704900572396,-500.0,0.00027397,2]
[311083164,1704900572416,-500.0,0.00027397,2]
[311083165,1704900572440,-500.0,0.00027397,2]
[311083166,1704900572462,-500.3,0.00027397,2]
[311083167,1704900572482,-500.0,0.00027397,2]
[311083168,1704900572504,-500.0,0.00027397,2]
[311083169,1704900572525,-500.0,0.00027397,2]
[311083170,1704900572547,-469.88941298,0.00027397,2]
[311083171,1704900572569,-500.0,0.00027397,2]
[311083172,1704900572592,-500.0,0.00027397,2]
[311083173,1704900572614,-500.0,0.00027397,2]
[311083174,1704900572635,-500.0,0.00027397,2]
[311083175,1704900572656,-265.0895561,0.00027397,2]
[311083176,1704900572679,-515.0953029,0.00027397,2]
[311083177,1704900572702,-500.0,0.00027397,2]
[311083178,1704900572722,-500.0,0.00027397,2]
[311083179,1704900572743,-500.0,0.00027397,2]
[311083180,1704900572764,-500.0,0.00027397,2]
[311083181,1704900572800,-500.0,0.00027397,2]
[311083182,1704900572822,-4850.81,0.00027397,2]
[311083183,1704900572844,-638.47,0.00027397,2]
[311083184,1704900572866,-500.0,0.00027397,2]
[311083185,1704900572887,-245.30792768,0.00027397,2]
[311083186,1704900572908,-500.0,0.00027397,2]
[311083187,1704900572932,-511.12548671,0.00027397,2]
[311083188,1704900572960,-500.0,0.00027397,2]
[311083189,1704900572983,-500.0,0.00027397,2]
[311083190,1704900573006,-500.0,0.00027397,2]
[311083191,1704900573029,-500.0,0.00027397,2]
[311083192,1704900573051,-500.0,0.00027397,2]
[311083193,1704900573073,-500.0,0.00027397,2]
[311083194,1704900573095,-500.0,0.00027397,2]
[311083195,1704900573118,-2263.69,0.00027397,2]
[311083196,1704900573140,-500.0,0.00027397,2]
[311083197,1704900573161,-500.0,0.00027397,2]
[311083198,1704900573183,-500.0,0.00027397,2]
[311083199,1704900573207,-500.0,0.00027397,2]
[311083200,1704900573227,-978.3,0.00027397,2]
[311083201,1704900573247,-500.0,0.00027415,2]
[311083202,1704900573267,-500.0,0.00027415,2]
[311083203,1704900573288,-500.0,0.00027416,2]
[311083204,1704900573309,-500.0,0.00027563,2]
[311083205,1704900573330,-500.0,0.00027563,2]
[311083206,1704900573351,-500.0,0.00027563,2]
[311083207,1704900573374,-500.0,0.00027563,2]
[311083208,1704900573395,-232.16952438,0.00027563,2]
[311083209,1704900573416,-500.0,0.00027563,2]
[311083210,1704900573437,-523.85729975,0.00027563,2]
[311083211,1704900573462,-500.0,0.00027563,2]
[311083212,1704900573483,-456.10977466,0.00027563,2]
[311083213,1704900573504,-500.0,0.00027563,2]
[311083214,1704900573524,-428.62690076,0.00027563,2]
[311083215,1704900573546,-500.0,0.00027563,2]
[311083216,1704900573567,-500.0,0.00027563,2]
[311083217,1704900573590,-500.0,0.00027563,2]
[311083218,1704900573610,-500.0,0.00027563,2]
[311083219,1704900573633,-500.0,0.00027563,2]
[311083220,1704900573654,-500.0,0.00027563,2]
[311083221,1704900573676,-500.0,0.00027563,2]
[311083222,1704900573702,-499.99999999,0.00027563,2]
[311083223,1704900573723,-500.0,0.00027563,2]
[311083224,1704900573745,-300.0,0.00027563,2]
[311083225,1704900573766,-500.0,0.00027563,2]
[311083226,1704900573788,-327.91042913,0.00027563,2]
[311083227,1704900573809,-309.79467277,0.00027563,2]
[311083228,1704900573832,-90060.21513929,0.00027564,3]
[311083229,1704900573854,-13887.29000085,0.00027564,3]
[311083230,1704900573874,-14156.31557456,0.00027564,3]
[311083231,1704900573895,-163.18368332,0.0002757,2]
[311083232,1704900573916,-504.76831012,0.0002767,2]
[311083233,1704900573935,-500.0,0.0002767,2]
[311083234,1704900573957,-226.49621579,0.0002767,2]
[311083235,1704900573977,-500.0,0.0002767,2]
[311083236,1704900573998,-520.61168319,0.0002767,2]
[311083237,1704900574018,-500.0,0.0002767,2]
[311083238,1704900574039,-307.60449464,0.0002767,2]
[311083239,1704900574059,-500.0,0.0002767,2]
[311083240,1704900574079,-500.0,0.0002767,2]
[311083241,1704900574101,-500.0,0.0002767,2]
[311083242,1704900574121,-500.0,0.0002767,2]
[311083243,1704900574142,-500.0,0.0002767,2]
[311083244,1704900574162,-500.0,0.0002767,2]
[311083245,1704900574183,-500.0,0.0002767,2]
[311083246,1704900574204,-500.0,0.0002767,2]
[311083247,1704900574224,-500.0,0.0002767,2]
[311083248,1704900574244,-500.0,0.0002767,2]
[311083249,1704900574264,-500.0,0.0002767,2]
[311083250,1704900574410,-500.0,0.0002767,2]
[311083251,1704900574431,-519.38443112,0.0002767,2]
[311083252,1704900574455,-553.73752008,0.0002767,2]
[311083253,1704900574477,-1119.06,0.0002767,2]
[311083254,1704900574499,-677.04,0.0002767,2]
[311083255,1704900574519,-500.0,0.0002767,2]
[311083256,1704900574540,-119.4583879,0.0002767,2]
[311083257,1704900578661,796.369,0.00029,30]
[311083308,1704900633837,-154.8915759,0.00024656,4]
[311083310,1704900633847,-166.666666,0.00026095,2]
[311083312,1704900633856,-166.666666,0.00026806,2]
[311083314,1704900633865,-614.01289661,0.00026999,2]
[311083319,1704900633900,-733.25771754,0.00027394,2]
[311083321,1704900633910,-5483.75189746,0.00027395,2]
[311083323,1704900633919,-1678.75258049,0.00027395,2]
[311083325,1704900633930,-1162.32804307,0.00027395,2]
[311083404,1704900638768,-7651.98137492,0.00027395,2]
[311083405,1704900638779,-525.91402641,0.00027396,2]
[311083406,1704900638789,-500.0,0.00027397,2]
[311083407,1704900638799,-580.81,0.00027397,2]
[311083408,1704900638809,-500.0,0.00027397,2]
[311083409,1704900638819,-500.0,0.00027397,2]
[311083410,1704900638830,-500.0,0.00027397,2]
[311083411,1704900638840,-500.0,0.00027397,2]
[311083412,1704900638850,-500.0,0.00027397,2]
[311083413,1704900638860,-506.72737826,0.00027397,2]
[311083414,1704900638870,-500.0,0.00027397,2]
[311083415,1704900638879,-500.0,0.00027397,2]
[311083416,1704900638889,-500.0,0.00027397,2]
[311083417,1704900638899,-503.57217146,0.00027397,2]
[311083418,1704900638908,-500.0,0.00027397,2]
[311083419,1704900638918,-500.0,0.00027397,2]
[311083420,1704900638927,-501.60891421,0.00027397,2]
[311083421,1704900638937,-501.3809648,0.00027397,2]
[311083422,1704900638947,-500.0,0.00027397,2]
[311083423,1704900638957,-501.81180643,0.00027397,2]
[311083424,1704900638968,-583.02535419,0.00027397,2]
[311083425,1704900638978,-500.0,0.00027397,2]
[311083426,1704900638988,-500.0,0.00027397,2]
[311083427,1704900639001,-1254.96,0.00027397,2]
[311083428,1704900639010,-166.666666,0.00027518,2]
[311083429,1704900639020,-2245.66927253,0.00027553,2]
[311083430,1704900639029,-1814.33368529,0.00027564,4]
[311083431,1704900639039,-2656.69,0.00027661,3]
[311083432,1704900639049,-2213.91,0.00027661,3]
[311083433,1704900639059,-1844.92,0.00027661,3]
[311083434,1704900639070,-727.7416121,0.0002767,2]
[311083435,1704900639079,-500.0,0.0002767,2]
[311083436,1704900639089,-502.64056547,0.0002767,2]
[311083437,1704900639100,-500.0,0.0002767,2]
[311083438,1704900639109,-503.49423838,0.0002767,2]
[311083439,1704900639119,-500.0,0.0002767,2]
[311083440,1704900639129,-231.27172654,0.0002767,2]
[311083441,1704900639139,-500.0,0.0002767,2]
[311083442,1704900639149,-500.0,0.0002767,2]
[311083443,1704900639159,-501.34716716,0.0002767,2]
[311083444,1704900639169,-503.16131874,0.0002767,2]
[311083445,1704900639179,-402.09100132,0.0002767,2]
[311083446,1704900639189,-500.0,0.0002767,2]
[311083447,1704900639199,-500.0,0.0002767,2]
[311083448,1704900639209,-522.09370799,0.0002767,2]
[311083449,1704900639219,-500.0,0.0002767,2]
[311083450,1704900639228,-502.37533265,0.0002767,2]
[311083451,1704900639242,-500.0,0.0002767,2]
[311083452,1704900639260,-500.0,0.0002767,2]
[311083453,1704900639271,-510.22720106,0.0002767,2]
[311083454,1704900639282,-503.20325283,0.0002767,2]
[311083455,1704900639292,-500.0,0.0002767,2]
[311083456,1704900639302,-502.85008081,0.0002767,2]
[311083457,1704900639311,-566.1607247,0.0002767,2]
[311083458,1704900639321,-500.0,0.0002767,2]
[311083459,1704900639331,-500.0,0.0002767,2]
[311083460,1704900639341,-517.01672452,0.0002767,2]
[311083461,1704900639352,-500.0,0.0002767,2]
[311083462,1704900639362,-500.0,0.0002767,2]
[311083463,1704900639372,-500.0,0.0002767,2]
[311083464,1704900639384,-500.0,0.0002767,2]
[311083465,1704900639397,-500.0,0.0002767,2]
[311083466,1704900639406,-500.0,0.0002767,2]
[311083467,1704900639416,-500.0,0.0002767,2]
[311083468,1704900639428,-502.83552207,0.0002767,2]
[311083469,1704900639438,-500.0,0.00027671,2]
[311083470,1704900639449,-500.0,0.00027671,2]
[311083471,1704900639460,-500.0,0.00027671,2]
[311083472,1704900639472,-500.0,0.00027671,2]
[311083473,1704900639483,-500.0,0.00027671,2]
[311083474,1704900639493,-500.0,0.00027671,2]
[311083475,1704900639507,-317.83820168,0.00027671,2]
[311083476,1704900639517,-500.0,0.00027671,2]
[311083477,1704900639526,-500.0,0.00027671,2]
[311083478,1704900639536,-500.0,0.00027671,2]
[311083479,1704900639546,-500.0,0.00027671,2]
[311083480,1704900639557,-1000.0,0.00027671,2]
[311083481,1704900639568,-500.0,0.00027671,2]
[311083482,1704900639578,-381.00525571,0.00027671,2]
[311083483,1704900639588,-500.0,0.00027671,2]
[311083484,1704900639598,-500.3,0.00027671,2]
[311083485,1704900639608,-500.0,0.00027671,2]
[311083486,1704900639618,-500.0,0.00027671,2]
[311083487,1704900639628,-500.0,0.00027671,2]
[311083488,1704900639638,-500.0,0.00027671,2]
[311083490,1704900639649,-500.0,0.00027671,2]
[311083491,1704900639659,-500.0,0.00027671,2]
[311083492,1704900639669,-4850.81,0.00027671,2]
[311083493,1704900639679,-638.47,0.00027671,2]
[311083494,1704900639689,-529.27051169,0.00027671,2]
[311083495,1704900639699,-564.67628536,0.00027671,2]
[311083496,1704900639709,-500.0,0.00027671,2]
[311083497,1704900639720,-500.0,0.00027671,2]
[311083498,1704900639730,-500.0,0.00027671,2]
[311083499,1704900639741,-500.0,0.00027671,2]
[311083500,1704900639756,-2263.69,0.00027671,2]
[311083501,1704900639767,-500.0,0.00027671,2]
[311083502,1704900639778,-978.3,0.00027671,2]
[311083503,1704900639789,-500.0,0.00027671,2]
[311083504,1704900639800,-580.81,0.00027671,2]
[311083505,1704900639811,-500.0,0.00027671,2]
[311083506,1704900639821,-500.0,0.00027671,2]
[311083507,1704900639831,-500.0,0.00027671,2]
[311083508,1704900639842,-500.0,0.00027671,2]
[311083509,1704900639853,-500.0,0.00027671,2]
[311083510,1704900639863,-1254.96,0.00027671,2]
[311083511,1704900639873,-687.59711705,0.00027943,2]
[311083512,1704900639883,-500.0,0.00027944,2]
[311083513,1704900639893,-500.0,0.00027944,2]
[311083514,1704900639903,-500.0,0.00027944,2]
[311083515,1704900639913,-500.0,0.00027944,2]
[311083516,1704900639922,-500.0,0.00027944,2]
[311083517,1704900639932,-500.0,0.00027944,2]
[311083518,1704900639942,-599.20286518,0.00027944,2]
[311083519,1704900639951,-500.0,0.00027944,2]
[311083520,1704900639961,-677.04,0.00027944,2]
[311083521,1704900639972,-500.0,0.00027944,2]
[311083522,1704900639982,-847.2,0.00027944,2]
[311083523,1704900639992,-500.0,0.00027944,2]
[311083524,1704900640012,-500.0,0.00027944,2]
[311083525,1704900640022,-500.0,0.00027944,2]
[311083526,1704900640036,-500.0,0.00027944,2]
[311083527,1704900640046,-500.0,0.00027944,2]
[311083528,1704900640057,-500.0,0.00027944,2]
[311083529,1704900640068,-500.0,0.00027944,2]
[311083530,1704900640078,-500.0,0.00027944,2]
[311083531,1704900640088,-500.0,0.00027945,2]
[311083532,1704900640098,-500.0,0.00027945,2]
[311083533,1704900640109,-500.0,0.00027945,2]
[311083534,1704900640119,-500.0,0.00027945,2]
[311083535,1704900640129,-500.0,0.00027945,2]
[311083536,1704900640139,-500.0,0.00027945,2]
[311083537,1704900640149,-500.0,0.00027945,2]
[311083538,1704900640161,-500.0,0.00027945,2]
[311083539,1704900640171,-500.0,0.00027945,2]
[311083540,1704900640181,-500.3,0.00027945,2]
[311083541,1704900640192,-500.0,0.00027945,2]
[311083542,1704900640202,-638.91006486,0.00027945,2]
[311083543,1704900640213,-500.0,0.00027945,2]
[311083544,1704900640223,-617.82317733,0.00027945,2]
[311083545,1704900640234,-4850.81,0.00027945,2]
[311083546,1704900640245,-638.47,0.00027945,2]
[311083548,1704900640264,-500.0,0.00027945,2]
[311083549,1704900640275,-2263.69,0.00027945,2]
[311083550,1704900640286,-978.3,0.00027945,2]
[311083552,1704900640298,-580.81,0.00027945,2]
[311083553,1704900640309,-500.0,0.00027945,2]
[311083554,1704900640319,-1254.96,0.00027945,2]
[311083555,1704900640331,-4711.08145103,0.00028217,2]
[311083556,1704900640342,-500.0,0.00028218,2]
[311083557,1704900640352,-500.0,0.00028218,2]
[311083558,1704900640365,-500.0,0.00028218,2]
[311083560,1704900640376,-500.0,0.00028218,2]
[311083562,1704900640386,-677.04,0.00028218,2]
[311083564,1704900640397,-847.2,0.00028218,2]
[311083565,1704900640407,-500.0,0.00028218,2]
[311083566,1704900640418,-500.0,0.00028218,2]
[311083567,1704900640429,-500.0,0.00028218,2]
[311083568,1704900640439,-500.0,0.00028218,2]
[311083569,1704900640450,-500.0,0.00028218,2]
[311083570,1704900640461,-500.0,0.00028219,2]
[311083571,1704900640472,-308.861743,0.00028219,2]
[311083572,1704900640482,-500.0,0.00028219,2]
[311083573,1704900640492,-500.0,0.00028219,2]
[311083574,1704900640511,-581.94597339,0.00028219,2]
[311083575,1704900640521,-518.9,0.00028219,2]
[311083576,1704900640531,-500.0,0.00028219,2]
[311083577,1704900640542,-500.3,0.00028219,2]
[311083578,1704900640553,-500.0,0.00028219,2]
[311083579,1704900640563,-500.0,0.00028219,2]
[311083580,1704900640574,-4850.81,0.00028219,2]
[311083581,1704900640584,-638.47,0.00028219,2]
[311083582,1704900640595,-500.0,0.00028219,2]
[311083583,1704900640605,-2263.69,0.00028219,2]
[311083584,1704900640615,-978.3,0.00028219,2]
[311083585,1704900640626,-580.81,0.00028219,2]
[311083586,1704900640636,-500.0,0.00028219,2]
[311083587,1704900640646,-1254.96,0.00028219,2]
[311083588,1704900640657,-166.666666,0.00028229,2]
[311083589,1704900640668,-9098.22062588,0.00028394,4]
[311083590,1704900640678,-2112.91389925,0.00028491,2]
[311083591,1704900640688,-19828.39990193,0.00028491,2]
[311083592,1704900640698,-2292.16683006,0.00028491,2]
[311083593,1704900640709,-263.71867682,0.00028491,2]
[311083594,1704900640718,-3000.0,0.00028491,2]
[311083595,1704900640728,-500.0,0.00028492,2]
[311083596,1704900640738,-500.0,0.00028492,2]
[311083597,1704900640750,-500.0,0.00028492,2]
[311083598,1704900640760,-461.75,0.00028492,2]
[311083599,1704900640770,-677.04,0.00028492,2]
[311083600,1704900640780,-847.2,0.00028492,2]
[311083601,1704900640790,-500.0,0.00028492,2]
[311083602,1704900640800,-500.0,0.00028492,2]
[311083603,1704900640810,-500.0,0.00028492,2]
[311083604,1704900640821,-500.0,0.00028493,2]
[311083605,1704900640831,-500.0,0.00028493,2]
[311083606,1704900640842,-500.0,0.00028493,2]
[311083607,1704900640852,-500.0,0.00028493,2]
[311083608,1704900640862,-500.3,0.00028493,2]
[311083609,1704900640872,-500.0,0.00028493,2]
[311083610,1704900640882,-500.0,0.00028493,2]
[311083611,1704900640892,-4850.81,0.00028493,2]
[311083612,1704900640902,-638.47,0.00028493,2]
[311083613,1704900640912,-500.0,0.00028493,2]
[311083614,1704900640922,-2263.69,0.00028493,2]
[311083615,1704900640931,-978.3,0.00028493,2]
[311083616,1704900640941,-580.81,0.00028493,2]
[311083617,1704900640952,-500.0,0.00028493,2]
[311083618,1704900640963,-1254.96,0.00028493,2]
[311083619,1704900640973,-500.0,0.00028766,2]
[311083620,1704900640983,-677.04,0.00028766,2]
[311083622,1704900640993,-847.2,0.00028766,2]
[311083624,1704900641009,-500.0,0.00028766,2]
[311083626,1704900641019,-500.0,0.00028766,2]
[311083628,1704900641029,-500.0,0.00028766,2]
[311083630,1704900641039,-525.93,0.00028767,2]
[311083632,1704900641050,-171.62,0.00028767,2]
[311083634,1704900641061,-500.0,0.00028767,2]
[311083636,1704900641071,-500.0,0.00028767,2]
[311083638,1704900641081,-500.3,0.00028767,2]
[311083640,1704900641091,-500.0,0.00028767,2]
[311083642,1704900641100,-325.87,0.00028767,2]
[311083654,1704900641112,-4850.81,0.00028767,2]
[311083656,1704900641222,-638.47,0.00028767,2]
[311083658,1704900641232,-500.0,0.00028767,2]
[311083660,1704900641241,-2263.69,0.00028767,2]
[311083662,1704900641255,-978.3,0.00028767,2]
[311083664,1704900641265,-580.81,0.00028767,2]
[311083666,1704900641276,-500.0,0.00028767,2]
[311083668,1704900641285,-1254.96,0.00028767,2]
[311083670,1704900641294,-166.666666,0.0002894,2]
[311083672,1704900641303,-500.0,0.0002899,2]
[311083674,1704900641313,-195.47561771,0.0002899,2]
[311083676,1704900641322,-616.08476219,0.0002899,2]
[311083678,1704900641332,-500.0,0.0002899,2]
[311083680,1704900641341,-208.70435716,0.0002899,2]
[311083682,1704900641350,-500.0,0.0002899,2]
[311083684,1704900641360,-500.0,0.0002899,2]
[311083686,1704900641369,-500.0,0.0002899,2]
[311083688,1704900641379,-226.78467566,0.0002899,2]
[311083690,1704900641388,-500.0,0.0002899,2]
[311083692,1704900641401,-500.0,0.0002899,2]
[311083694,1704900641410,-500.0,0.0002899,2]
[311083696,1704900641419,-500.0,0.0002899,2]
[311083698,1704900641429,-500.0,0.0002899,2]
[311083700,1704900641438,-500.0,0.0002899,2]
[311083702,1704900641448,-500.0,0.0002899,2]
[311083704,1704900641457,-500.0,0.0002899,2]
[311083706,1704900641466,-500.0,0.0002899,2]
[311083708,1704900641476,-282.23163518,0.0002899,2]
[311083710,1704900641486,-500.0,0.0002899,2]
[311083712,1704900641498,-8743.9820779,0.00028991,2]
[311083714,1704900641507,-619.44144137,0.00029,2]
[311083716,1704900641516,-677.04,0.0002904,2]
[311083718,1704900641525,-847.2,0.0002904,2]
[311083720,1704900641533,-500.0,0.0002904,2]
[311083722,1704900641543,-500.0,0.0002904,2]
[311083724,1704900641552,-500.0,0.0002904,2]
[311083726,1704900641561,-500.0,0.00029041,2]
[311083728,1704900641571,-500.0,0.00029041,2]
[311083730,1704900641580,-500.3,0.00029041,2]
[311083732,1704900641590,-500.0,0.00029041,2]
[311083734,1704900641599,-4850.81,0.00029041,2]
[311083736,1704900641608,-638.47,0.00029041,2]
[311083738,1704900641618,-500.0,0.00029041,2]
[311083740,1704900641627,-2263.69,0.00029041,2]
[311083742,1704900641637,-978.3,0.00029041,2]
[311083743,1704900641646,-580.81,0.00029041,2]
[311083745,1704900641655,-500.0,0.00029041,2]
[311083747,1704900641665,-1254.96,0.00029041,2]
[311083749,1704900641675,-154.8915759,0.0002913,2]
[311083751,1704900641685,-677.04,0.00029314,2]
[311083753,1704900641694,-847.2,0.00029314,2]
[311083755,1704900641703,-500.0,0.00029314,2]
[311083757,1704900641712,-302.133268,0.00029314,2]
[311083759,1704900641721,-500.0,0.00029314,2]
[311083760,1704900641730,-500.0,0.00029314,2]
[311083762,1704900641739,-500.0,0.00029314,2]
[311083764,1704900641751,-317.99,0.00029315,2]
[311083766,1704900641761,-500.0,0.00029315,2]
[311083768,1704900641770,-500.3,0.00029315,2]
[311083770,1704900641780,-500.0,0.00029315,2]
[311083772,1704900641789,-4850.81,0.00029315,2]
[311083774,1704900641798,-638.47,0.00029315,2]
[311083775,1704900641808,-500.0,0.00029315,2]
[311083777,1704900641817,-2263.69,0.00029315,2]
[311083779,1704900641826,-978.3,0.00029315,2]
[311083781,1704900641836,-580.81,0.00029315,2]
[311083783,1704900641846,-500.0,0.00029315,2]
[311083785,1704900641856,-1254.96,0.00029315,2]
[311083787,1704900641866,-677.04,0.00029588,2]
[311083789,1704900641876,-847.2,0.00029588,2]
[311083791,1704900641886,-500.0,0.00029588,2]
[311083793,1704900641895,-500.0,0.00029588,2]
[311083795,1704900641905,-500.0,0.00029588,2]
[311083797,1704900641914,-500.0,0.00029589,2]
[311083799,1704900641925,-500.3,0.00029589,2]
[311083801,1704900641935,-500.0,0.00029589,2]
[311083803,1704900641944,-4850.81,0.00029589,2]
[311083805,1704900641953,-638.47,0.00029589,2]
[311083807,1704900641962,-500.0,0.00029589,2]
[311083809,1704900641972,-2263.69,0.00029589,2]
[311083811,1704900641981,-978.3,0.00029589,2]
[311083813,1704900641990,-580.81,0.00029589,2]
[311083815,1704900642002,-500.0,0.00029589,2]
[311083817,1704900642011,-1254.96,0.00029589,2]
[311083819,1704900642021,-2000.0,0.000296,2]
[311083821,1704900642031,-2000.0,0.0002961,2]
[311083823,1704900642040,-2000.0,0.0002962,2]
[311083825,1704900642049,-2000.0,0.0002963,2]
[311083827,1704900642058,-2000.0,0.0002964,2]
[311083828,1704900642067,-881.94009009,0.00029645,2]
[311083830,1704900642077,-2000.0,0.0002965,2]
[311083832,1704900642087,-166.666666,0.00029652,2]
[311083834,1704900642096,-3929.751714,0.0002966,2]
[311083836,1704900642105,-677.04,0.00029862,2]
[311083838,1704900642115,-847.2,0.00029862,2]
[311083840,1704900642124,-500.0,0.00029862,2]
[311083842,1704900642134,-500.0,0.00029862,2]
[311083844,1704900642143,-500.0,0.00029862,2]
[311083846,1704900642152,-500.0,0.00029863,2]
[311083848,1704900642161,-500.3,0.00029863,2]
[311083850,1704900642171,-500.0,0.00029863,2]
[311083852,1704900642180,-4850.81,0.00029863,2]
[311083854,1704900642189,-638.47,0.00029863,2]
[311083856,1704900642199,-500.0,0.00029863,2]
[311083858,1704900642208,-2263.69,0.00029863,2]
[311083860,1704900642217,-978.3,0.00029863,2]
[311083862,1704900642226,-580.81,0.00029863,2]
[311083863,1704900642236,-500.0,0.00029863,2]
[311083865,1704900642248,-1254.96,0.00029863,2]
[311083867,1704900642258,-787.43,0.00029887,2]
[311083869,1704900642267,-787.43,0.00029887,2]
[311083871,1704900642277,-787.43,0.00029887,2]
[311083873,1704900642287,-787.43,0.00029887,2]
[311083875,1704900642296,-787.43,0.00029887,2]
[311083877,1704900642305,-787.43,0.00029887,2]
[311083879,1704900642314,-787.46,0.00029887,2]
[311083881,1704900642323,-787.43,0.00029887,2]
[311083883,1704900642332,-763.40324942,0.00029888,2]
[311083885,1704900642341,-3313.2630203,0.00029888,2]
[311083887,1704900642350,-2079.63666476,0.00029888,2]
[311083889,1704900642359,-305.01426273,0.00029888,2]
[311083891,1704900642368,-193.41149257,0.00029888,2]
[311083892,1704900642378,-283496.12713746,0.00029888,7]
[311083893,1704900642388,-1821.85168105,0.00029888,2]
[311083894,1704900642397,-200.0,0.00029888,2]
[311083895,1704900642406,-300.0,0.00029888,2]
[311083896,1704900642415,-5333.46335116,0.00029899,2]
[311083897,1704900642424,-163.18368332,0.00029985,2]
[311083898,1704900642433,-236.52252731,0.0003,7]
[311083899,1704900642442,-18048.02930508,0.0003,4]
[311083900,1704900642451,-6973.85683356,0.0003,4]
[311083901,1704900642460,-154.90705577,0.0003,2]
[311083902,1704900642469,-399.65900583,0.0003,4]
[311083903,1704900642478,-243.77594457,0.0003,4]
[311083904,1704900642487,-639.65046808,0.0003,4]
[311083905,1704900642496,-463.38099934,0.0003,4]
[311083906,1704900642505,-686.6335406,0.0003,4]
[311083907,1704900642514,-269.0,0.0003,2]
[311083908,1704900642523,-150.0,0.00030136,2]
[311083909,1704900642532,-500.0,0.00030136,2]
[311083910,1704900642547,-500.3,0.00030136,2]
[311083911,1704900642556,-677.04,0.00030136,2]
[311083912,1704900642565,-847.2,0.00030136,2]
[311083913,1704900642574,-500.0,0.00030136,2]
[311083914,1704900642582,-4850.81,0.00030136,2]
[311083915,1704900642591,-638.47,0.00030136,2]
[311083917,1704900642600,-173.0877541,0.00030136,2]
[311083919,1704900642609,-500.0,0.00030136,2]
[311083920,1704900642617,-500.0,0.00030136,2]
[311083922,1704900642626,-2263.69,0.00030136,2]
[311083923,1704900642635,-500.0,0.00030136,2]